lending/lending_fUSD_20250516
["ID","MTS","AMOUNT","RATE_DAILY","PERIOD"]
[361240119,1747386657228,-151.0,0.00015,2]
[361240120,1747386657243,-151.0,0.00015,2]
[361240121,1747386657259,-151.0,0.00015,2]
[361240122,1747386657273,-151.692841,0.00015,2]
[361240123,1747386657288,-151.692841,0.00015,2]
[361240124,1747386657304,-151.0,0.00015,2]
[361240125,1747386657320,-151.0,0.00015,2]
[361240126,1747386657335,-1147.254617,0.00015,2]
[361240127,1747386657350,-1147.254617,0.00015,2]
[361240128,1747386657365,-273.905562,0.00015,2]
[361240129,1747386657381,-273.905562,0.00015,2]
[361240130,1747386657396,-240.021197,0.00015,2]
[361240131,1747386657411,-240.021197,0.00015,2]
[361240132,1747386657426,-240.021197,0.00015,2]
[361240133,1747386657444,-240.021196,0.00015,2]
[361240134,1747386657458,-151.0,0.00015,2]
[361240135,1747386657473,-219.197503,0.00015,2]
[361240136,1747386657489,-228.423969,0.00015,2]
[361240137,1747386657504,-228.423969,0.00015,2]
[361240138,1747386657520,-206.858908,0.00015,2]
[361240139,1747386657537,-206.858908,0.00015,2]
[361240140,1747386657551,-228.423969,0.00015,2]
[361240141,1747386657566,-228.423968,0.00015,2]
[361240142,1747386657830,-206.858908,0.00015,2]
[361240143,1747386657856,-206.858899,0.00015,2]
[361240144,1747386657865,-151.0,0.00015,2]
[361240145,1747386657875,-191.464713,0.00015,2]
[361240146,1747386657885,-191.464713,0.00015,2]
[361240147,1747386657894,-191.464713,0.00015,2]
[361240148,1747386657904,-191.464705,0.00015,2]
[361240149,1747386657915,-197.166919,0.00015,2]
[361240150,1747386657925,-151.0,0.00015,2]
[361240151,1747386657934,-151.0,0.00015,2]
[361240152,1747386657942,-764.641209,0.00015,2]
[361240153,1747386657952,-764.641209,0.00015,2]
[361240154,1747386657961,-764.641209,0.00015,2]
[361240155,1747386657970,-764.641202,0.00015,2]
[361240156,1747386657980,-151.0,0.00015,2]
[361240157,1747386657989,-434.149743,0.00015,2]
[361240158,1747386657999,-434.149743,0.00015,2]
[361240159,1747386658008,-486.222573,0.00015,2]
[361240160,1747386658017,-486.22258056,0.00015,2]
[361240161,1747386658026,-151.0,0.00015,2]
[361240162,1747386658036,-151.0,0.00015,2]
[361240163,1747386658045,-423.108271,0.00015,2]
[361240164,1747386658055,-423.108271,0.00015,2]
[361240165,1747386658064,-423.108271,0.00015,2]
[361240166,1747386658074,-423.108266,0.00015,2]
[361240167,1747386658083,-151.0,0.00015,2]
[361240168,1747386658093,-3322.857273,0.00015,2]
[361240169,1747386658102,-3322.857275,0.00015,2]
[361240170,1747386658112,-1628.234963,0.00015,2]
[361240171,1747386658121,-1628.234963,0.00015,2]
[361240172,1747386658131,-1628.234963,0.00015,2]
[361240173,1747386658140,-1628.234955,0.00015,2]
[361240174,1747386658150,-217.292633,0.00015,2]
[361240175,1747386658160,-217.292639,0.00015,2]
[361240176,1747386658170,-432.31772392,0.00015033,2]
[361240177,1747386658179,-519.88,0.00015068,2]
[361240178,1747386658189,-1000.0,0.00015068,2]
[361240179,1747386658198,-300.0,0.00015068,2]
[361240180,1747386658207,-162.380719,0.00015086,2]
[361240181,1747386658216,-223.0315306,0.00015086,2]
[361240182,1747386658226,-1199.20597015,0.00015088,2]
[361240183,1747386658236,-560.01703582,0.00015088,2]
[361240184,1747386658245,-643.53479828,0.00015107,2]
[361240185,1747386658255,-989.009741,0.00015108,2]
[361240186,1747386658265,-5951.618957,0.00015108,2]
[361240187,1747386658274,-1642.33144,0.00015108,2]
[361240188,1747386658283,-2500.0,0.00015164,2]
[361240189,1747386658293,-1315.07,0.000152,2]
[361240190,1747386658302,-1977.33,0.000152,2]
[361240191,1747386658312,-530.72,0.000152,2]
[361240192,1747386658321,-1000.0,0.00015342,2]
[361240193,1747386658331,-643.53479828,0.00015383,2]
[361240194,1747386658341,-185.67036517,0.00015441,2]
[361240195,1747386658351,-346.48,0.00015563,2]
[361240196,1747386658360,-432.31772392,0.00015568,2]
[361240197,1747386658370,-648.372,0.000156,2]
[361240198,1747386658379,-5941.0,0.000156,2]
[361240199,1747386658389,-1000.0,0.00015616,2]
[361240200,1747386658398,-1243.57659104,0.00015636,2]
[361240201,1747386658408,-643.53479828,0.00015659,2]
[361240202,1747386658418,-3000.0,0.00015712,2]
[361240203,1747386658428,-559.28493784,0.00015751,2]
[361240204,1747386658443,-368.34894069,0.0001576,2]
[361240205,1747386658454,-252.58,0.00015801,2]
[361240206,1747386658464,-1000.0,0.0001589,2]
[361240207,1747386658475,-150.0,0.0001589,2]
[361240208,1747386658484,-643.53479828,0.00015934,2]
[361240209,1747386658494,-1315.07,0.00016,2]
[361240210,1747386658504,-1977.33,0.00016,2]
[361240211,1747386658514,-530.72,0.00016,2]
[361240212,1747386658524,-1320.94,0.00016,2]
[361240213,1747386658533,-150.0,0.00016,2]
[361240214,1747386658543,-150.0,0.00016,2]
[361240215,1747386658552,-367.961,0.00016,2]
[361240216,1747386658562,-932.0,0.00016,2]
[361240217,1747386658571,-799.0,0.00016,2]
[361240218,1747386658581,-629.0,0.00016,2]
[361240219,1747386658591,-600.0,0.00016,2]
[361240220,1747386658601,-200.291843,0.00016,2]
[361240221,1747386658610,-432.31772392,0.00016103,2]
[361240222,1747386658619,-2225.42,0.00016116,2]
[361240223,1747386658629,-2951.43,0.00016116,2]
[361240224,1747386658639,-555.55,0.00016116,2]
[361240225,1747386658649,-1000.0,0.00016164,2]
[361240226,1747386658659,-1289.58892491,0.00016184,2]
[361240227,1747386658668,-643.53479828,0.0001621,2]
[361240228,1747386658678,-2199.56562815,0.0001626,2]
[361240229,1747386658687,-185.67036517,0.00016288,2]
[361240230,1747386658697,-804.53,0.00016301,2]
[361240231,1747386658707,-1000.0,0.00016393,2]
[361240232,1747386658718,-21664.48813657,0.00016438,2]
[361240233,1747386658727,-400.0,0.00016438,2]
[361240234,1747386658737,-221.0,0.00016438,2]
[361240235,1747386658747,-221.0,0.00016438,2]
[361240236,1747386658760,-221.0,0.00016438,2]
[361240237,1747386658770,-221.0,0.00016438,2]
[361240238,1747386658780,-221.0,0.00016438,2]
[361240239,1747386658790,-221.0,0.00016438,2]
[361240240,1747386658799,-221.0,0.00016438,2]
[361240241,1747386658809,-211.0,0.00016438,2]
[361240242,1747386658819,-211.0,0.00016438,2]
[361240243,1747386658829,-211.0,0.00016438,2]
[361240244,1747386658838,-209.0,0.00016438,2]
[361240245,1747386658849,-209.0,0.00016438,2]
[361240246,1747386658859,-209.0,0.00016438,2]
[361240247,1747386658869,-209.0,0.00016438,2]
[361240248,1747386658880,-209.0,0.00016438,2]
[361240249,1747386658890,-209.0,0.00016438,2]
[361240250,1747386658903,-209.0,0.00016438,2]
[361240251,1747386658913,-209.0,0.00016438,2]
[361240252,1747386658922,-400.0,0.00016438,2]
[361240253,1747386658931,-182.108442,0.00016438,2]
[361240254,1747386658940,-182.108442,0.00016438,2]
[361240255,1747386658950,-182.108442,0.00016438,2]
[361240256,1747386658959,-182.108442,0.00016438,2]
[361240257,1747386658969,-182.108442,0.00016438,2]
[361240258,1747386658978,-182.108451,0.00016438,2]
[361240259,1747386658989,-151.954361,0.00016438,2]
[361240260,1747386658999,-151.954361,0.00016438,2]
[361240261,1747386659008,-151.954361,0.00016438,2]
[361240262,1747386659017,-151.954361,0.00016438,2]
[361240263,1747386659027,-151.954361,0.00016438,2]
[361240264,1747386659036,-151.954364,0.00016438,2]
[361240265,1747386659046,-152.529041,0.00016438,2]
[361240266,1747386659055,-151.0,0.00016438,2]
[361240267,1747386659065,-151.0,0.00016438,2]
[361240268,1747386659074,-151.0,0.00016438,2]
[361240269,1747386659083,-151.0,0.00016438,2]
[361240270,1747386659093,-151.0,0.00016438,2]
[361240271,1747386659102,-400.0,0.00016438,2]
[361240272,1747386659111,-400.0,0.00016438,2]
[361240273,1747386659120,-401.74351996,0.00016438,2]
[361240274,1747386659130,-400.0,0.00016438,2]
[361240275,1747386659139,-400.0,0.00016438,2]
[361240276,1747386659149,-400.0,0.00016438,2]
[361240277,1747386659158,-400.0,0.00016438,2]
[361240278,1747386659167,-400.0,0.00016438,2]
[361240279,1747386659176,-400.0,0.00016438,2]
[361240280,1747386659185,-151.0,0.00016438,2]
[361240281,1747386659195,-155.232152,0.00016438,2]
[361240282,1747386659204,-400.67328728,0.00016438,2]
[361240283,1747386659213,-400.0,0.00016438,2]
[361240284,1747386659222,-151.0,0.00016438,2]
[361240285,1747386659231,-151.0,0.00016438,2]
[361240286,1747386659240,-276.37829561,0.00016438,2]
[361240287,1747386659249,-400.0,0.00016438,2]
[361240288,1747386659258,-400.0,0.00016438,2]
[361240289,1747386659267,-400.0,0.00016438,2]
[361240290,1747386659276,-151.0,0.00016438,2]
[361240291,1747386659285,-400.0,0.00016438,2]
[361240292,1747386659294,-400.0,0.00016438,2]
[361240293,1747386659303,-400.0,0.00016438,2]
[361240294,1747386659312,-400.0,0.00016438,2]
[361240295,1747386659321,-400.0,0.00016438,2]
[361240296,1747386659330,-400.0,0.00016438,2]
[361240297,1747386659339,-400.0,0.00016438,2]
[361240298,1747386659348,-400.0,0.00016438,2]
[361240299,1747386659358,-408.12426026,0.00016438,2]
[361240300,1747386659366,-400.0,0.00016438,2]
[361240301,1747386659375,-151.0,0.00016438,2]
[361240302,1747386659386,-427.1102525,0.00016438,2]
[361240303,1747386659395,-400.0,0.00016438,2]
[361240304,1747386659405,-400.0,0.00016438,2]
[361240305,1747386659415,-400.0,0.00016438,2]
[361240306,1747386659425,-400.0,0.00016438,2]
[361240307,1747386659436,-151.0,0.00016438,2]
[361240308,1747386659448,-151.0,0.00016438,2]
[361240309,1747386659457,-400.0,0.00016438,2]
[361240310,1747386659468,-400.0,0.00016438,2]
[361240311,1747386659477,-400.0,0.00016438,2]
[361240312,1747386659489,-400.0,0.00016438,2]
[361240313,1747386659499,-400.0,0.00016438,2]
[361240314,1747386659509,-400.0,0.00016438,2]
[361240315,1747386659518,-400.0,0.00016438,2]
[361240316,1747386659529,-402.47976509,0.00016438,2]
[361240317,1747386659538,-215.76098051,0.00016438,2]
[361240318,1747386659548,-400.0,0.00016438,2]
[361240319,1747386659557,-400.0,0.00016438,2]
[361240320,1747386659566,-400.0,0.00016438,2]
[361240321,1747386659576,-400.0,0.00016438,2]
[361240322,1747386659585,-400.0,0.00016438,2]
[361240323,1747386659595,-400.0,0.00016438,2]
[361240324,1747386659605,-252.25098489,0.00016438,2]
[361240325,1747386659614,-400.0,0.00016438,2]
[361240326,1747386659623,-400.0,0.00016438,2]
[361240327,1747386659633,-419.74927127,0.00016438,2]
[361240328,1747386659642,-400.0,0.00016438,2]
[361240329,1747386659653,-400.0,0.00016438,2]
[361240330,1747386659662,-400.0,0.00016438,2]
[361240331,1747386659672,-402.81788725,0.00016438,2]
[361240332,1747386659681,-400.0,0.00016438,2]
[361240333,1747386659691,-400.0,0.00016438,2]
[361240334,1747386659700,-400.0,0.00016438,2]
[361240335,1747386659710,-400.0,0.00016438,2]
[361240336,1747386659719,-400.0,0.00016438,2]
[361240337,1747386659729,-151.0,0.00016438,2]
[361240338,1747386659738,-151.0,0.00016438,2]
[361240339,1747386659748,-400.0,0.00016438,2]
[361240340,1747386659758,-400.0,0.00016438,2]
[361240341,1747386659767,-400.0,0.00016438,2]
[361240342,1747386659777,-400.0,0.00016438,2]
[361240343,1747386659786,-400.0,0.00016438,2]
[361240344,1747386659795,-400.0,0.00016438,2]
[361240345,1747386659804,-400.0,0.00016438,2]
[361240346,1747386659813,-409.26674575,0.00016438,2]
[361240347,1747386659822,-151.692841,0.00016438,2]
[361240348,1747386659832,-400.0,0.00016438,2]
[361240349,1747386659841,-151.692841,0.00016438,2]
[361240350,1747386659850,-400.0,0.00016438,2]
[361240351,1747386659859,-400.0,0.00016438,2]
[361240352,1747386659868,-151.692841,0.00016438,2]
[361240353,1747386659879,-151.692848,0.00016438,2]
[361240354,1747386659890,-400.0,0.00016438,2]
[361240355,1747386659899,-400.0,0.00016438,2]
[361240356,1747386659908,-400.0,0.00016438,2]
[361240357,1747386659918,-400.0,0.00016438,2]
[361240358,1747386659927,-400.0,0.00016438,2]
[361240359,1747386659937,-400.02030788,0.00016438,2]
[361240360,1747386659946,-221.00779089,0.00016438,2]
[361240361,1747386659956,-400.0,0.00016438,2]
[361240362,1747386659966,-400.0,0.00016438,2]
[361240363,1747386659976,-400.0,0.00016438,2]
[361240364,1747386659986,-501.89971074,0.00016438,2]
[361240365,1747386659995,-536.68560308,0.00016438,2]
[361240366,1747386660006,-400.0,0.00016438,2]
[361240367,1747386660016,-151.0,0.00016438,2]
[361240368,1747386660025,-400.0,0.00016438,2]
[361240369,1747386660035,-151.0,0.00016438,2]
[361240370,1747386660045,-400.0,0.00016438,2]
[361240371,1747386660054,-400.0,0.00016438,2]
[361240372,1747386660064,-400.0,0.00016438,2]
[361240373,1747386660074,-400.0,0.00016438,2]
[361240374,1747386660083,-400.0,0.00016438,2]
[361240375,1747386660092,-400.0,0.00016438,2]
[361240376,1747386660102,-400.0,0.00016438,2]
[361240377,1747386660111,-400.0,0.00016438,2]
[361240378,1747386660121,-400.0,0.00016438,2]
[361240379,1747386660131,-151.0,0.00016438,2]
[361240380,1747386660141,-151.0,0.00016438,2]
[361240381,1747386660151,-400.0,0.00016438,2]
[361240382,1747386660160,-400.0,0.00016438,2]
[361240383,1747386660170,-400.0,0.00016438,2]
[361240384,1747386660179,-400.0,0.00016438,2]
[361240385,1747386660189,-400.0,0.00016438,2]
[361240386,1747386660199,-400.0,0.00016438,2]
[361240387,1747386660209,-1147.254617,0.00016438,2]
[361240388,1747386660219,-400.0,0.00016438,2]
[361240389,1747386660228,-1147.254617,0.00016438,2]
[361240390,1747386660239,-400.0,0.00016438,2]
[361240391,1747386660249,-1147.254617,0.00016438,2]
[361240392,1747386660259,-400.0,0.00016438,2]
[361240393,1747386660270,-400.0,0.00016438,2]
[361240394,1747386660279,-1147.254609,0.00016438,2]
[361240395,1747386660288,-400.0,0.00016438,2]
[361240396,1747386660298,-400.0,0.00016438,2]
[361240397,1747386660307,-273.905562,0.00016438,2]
[361240398,1747386660316,-400.0,0.00016438,2]
[361240399,1747386660326,-400.0,0.00016438,2]
[361240400,1747386660334,-400.0,0.00016438,2]
[361240401,1747386660344,-400.0,0.00016438,2]
[361240402,1747386660352,-400.0,0.00016438,2]
[361240403,1747386660361,-400.0,0.00016438,2]
[361240404,1747386660370,-273.905566,0.00016438,2]
[361240405,1747386660381,-400.0,0.00016438,2]
[361240406,1747386660390,-400.0,0.00016438,2]
[361240407,1747386660400,-400.0,0.00016438,2]
[361240408,1747386660409,-400.0,0.00016438,2]
[361240409,1747386660419,-400.73877352,0.00016438,2]
[361240410,1747386660428,-400.0,0.00016438,2]
[361240411,1747386660440,-400.0,0.00016438,2]
[361240412,1747386660450,-400.0,0.00016438,2]
[361240413,1747386660460,-516.84450685,0.00016438,2]
[361240414,1747386660469,-400.0,0.00016438,2]
[361240415,1747386660478,-400.0,0.00016438,2]
[361240416,1747386660488,-405.30913841,0.00016438,2]
[361240417,1747386660497,-219.78617642,0.00016438,2]
[361240418,1747386660506,-400.0,0.00016438,2]
[361240419,1747386660518,-400.0,0.00016438,2]
[361240420,1747386660528,-254.25070815,0.00016438,2]
[361240421,1747386660538,-400.0,0.00016438,2]
[361240422,1747386660548,-400.0,0.00016438,2]
[361240423,1747386660558,-400.0,0.00016438,2]
[361240424,1747386660568,-400.0,0.00016438,2]
[361240425,1747386660577,-400.0,0.00016438,2]
[361240426,1747386660587,-400.0,0.00016438,2]
[361240427,1747386660597,-527.88,0.00016438,2]
[361240428,1747386660606,-400.0,0.00016438,2]
[361240429,1747386660615,-381.42844624,0.00016438,2]
[361240430,1747386660625,-400.0,0.00016438,2]
[361240431,1747386660639,-400.0,0.00016438,2]
[361240432,1747386660648,-506.8977888,0.00016438,2]
[361240433,1747386660658,-500.0,0.00016438,2]
[361240434,1747386660668,-500.0,0.00016438,2]
[361240435,1747386660678,-500.0,0.00016438,2]
[361240436,1747386660687,-511.95073101,0.00016438,2]
[361240437,1747386660697,-400.0,0.00016438,2]
[361240438,1747386660707,-400.0,0.00016438,2]
[361240439,1747386660716,-400.0,0.00016438,2]
[361240440,1747386660726,-400.0,0.00016438,2]
[361240441,1747386660736,-400.0,0.00016438,2]
[361240442,1747386660745,-563.55,0.00016438,2]
[361240443,1747386660754,-400.0,0.00016438,2]
[361240444,1747386660764,-400.0,0.00016438,2]
[361240445,1747386660773,-400.0,0.00016438,2]
[361240446,1747386660783,-400.0,0.00016438,2]
[361240447,1747386660792,-400.0,0.00016438,2]
[361240448,1747386660802,-639.58,0.00016438,2]
[361240449,1747386660812,-400.0,0.00016438,2]
[361240450,1747386660821,-400.0,0.00016438,2]
[361240451,1747386660831,-400.0,0.00016438,2]
[361240452,1747386660842,-400.0,0.00016438,2]
[361240453,1747386660852,-400.0,0.00016438,2]
[361240454,1747386660864,-494.1,0.00016438,2]
[361240455,1747386660874,-400.0,0.00016438,2]
[361240456,1747386660886,-402.62078218,0.00016438,2]
[361240457,1747386660895,-400.0,0.00016438,2]
[361240458,1747386660905,-531.29915467,0.00016438,2]
[361240459,1747386660915,-401.89797635,0.00016438,2]
[361240460,1747386661118,-400.0,0.00016438,2]
[361240461,1747386661129,-689.62,0.00016438,2]
[361240462,1747386661139,-400.0,0.00016438,2]
[361240463,1747386661149,-400.0,0.00016438,2]
[361240464,1747386661158,-507.19036735,0.00016438,2]
[361240465,1747386661168,-403.66575788,0.00016438,2]
[361240466,1747386661179,-626.11,0.00016438,2]
[361240467,1747386661188,-400.0,0.00016438,2]
[361240468,1747386661198,-492.84,0.00016438,2]
[361240469,1747386661208,-400.0,0.00016438,2]
[361240470,1747386661216,-400.0,0.00016438,2]
[361240471,1747386661225,-400.0,0.00016438,2]
[361240472,1747386661236,-492.48,0.00016438,2]
[361240473,1747386661245,-423.26,0.00016438,2]
[361240474,1747386661255,-435.69,0.00016438,2]
[361240475,1747386661264,-400.0,0.00016438,2]
[361240476,1747386661274,-400.0,0.00016438,2]
[361240477,1747386661284,-400.0,0.00016438,2]
[361240478,1747386661293,-400.0,0.00016438,2]
[361240479,1747386661303,-360.0823595,0.00016438,2]
[361240480,1747386661314,-400.0,0.00016438,2]
[361240481,1747386661324,-400.0,0.00016438,2]
[361240482,1747386661334,-400.0,0.00016438,2]
[361240483,1747386661343,-400.0,0.00016438,2]
[361240484,1747386661354,-527.14437374,0.00016438,2]
[361240485,1747386661364,-400.0,0.00016438,2]
[361240486,1747386661374,-400.0,0.00016438,2]
[361240487,1747386661385,-400.0,0.00016438,2]
[361240488,1747386661394,-400.0,0.00016438,2]
[361240489,1747386661404,-400.0,0.00016438,2]
[361240490,1747386661414,-400.0,0.00016438,2]
[361240491,1747386661424,-400.0,0.00016438,2]
[361240492,1747386661435,-400.0,0.00016438,2]
[361240493,1747386661447,-423.18,0.00016438,2]
[361240494,1747386661457,-400.0,0.00016438,2]
[361240495,1747386661467,-407.57545705,0.00016438,2]
[361240496,1747386661478,-400.0,0.00016438,2]
[361240497,1747386661487,-400.0,0.00016438,2]
[361240498,1747386661497,-400.0,0.00016438,2]
[361240499,1747386661508,-848.51,0.00016438,2]
[361240500,1747386661521,-400.0,0.00016438,2]
[361240501,1747386661532,-400.0,0.00016438,2]
[361240502,1747386661541,-400.0,0.00016438,2]
[361240503,1747386661551,-400.0,0.00016438,2]
[361240504,1747386661561,-400.0,0.00016438,2]
[361240505,1747386661570,-400.0,0.00016438,2]
[361240506,1747386661580,-400.0,0.00016438,2]
[361240507,1747386661589,-1157.56,0.00016438,2]
[361240508,1747386661599,-400.0,0.00016438,2]
[361240509,1747386661608,-400.0,0.00016438,2]
[361240510,1747386661617,-597.43,0.00016438,2]
[361240511,1747386661626,-400.0,0.00016438,2]
[361240512,1747386661637,-400.0,0.00016438,2]
[361240513,1747386661646,-400.0,0.00016438,2]
[361240514,1747386661655,-237.27965687,0.00016438,2]
[361240515,1747386661664,-400.0,0.00016438,2]
[361240516,1747386661674,-644.08,0.00016438,2]
[361240517,1747386661683,-400.0,0.00016438,2]
[361240518,1747386661692,-400.0,0.00016438,2]
[361240519,1747386661701,-400.0,0.00016438,2]
[361240520,1747386661710,-400.0,0.00016438,2]
[361240521,1747386661720,-400.0,0.00016438,2]
[361240522,1747386661730,-400.0,0.00016438,2]
[361240523,1747386661739,-400.0,0.00016438,2]
[361240524,1747386661750,-400.0,0.00016438,2]
[361240525,1747386661760,-400.0,0.00016438,2]
[361240526,1747386661770,-515.06,0.00016438,2]
[361240527,1747386661780,-400.0,0.00016438,2]
[361240528,1747386661790,-400.0,0.00016438,2]
[361240529,1747386661800,-400.0,0.00016438,2]
[361240530,1747386661811,-400.0,0.00016438,2]
[361240531,1747386661821,-400.0,0.00016438,2]
[361240532,1747386661830,-400.0,0.00016438,2]
[361240533,1747386661840,-400.0,0.00016438,2]
[361240534,1747386661849,-400.0,0.00016438,2]
[361240535,1747386661858,-400.0,0.00016438,2]
[361240536,1747386661868,-400.0,0.00016438,2]
[361240537,1747386661878,-400.0,0.00016438,2]
[361240538,1747386661887,-400.0,0.00016438,2]
[361240539,1747386661897,-506.66,0.00016438,2]
[361240540,1747386661906,-400.0,0.00016438,2]
[361240541,1747386661915,-400.0,0.00016438,2]
[361240542,1747386661925,-400.0,0.00016438,2]
[361240543,1747386661935,-400.0,0.00016438,2]
[361240544,1747386661945,-400.0,0.00016438,2]
[361240545,1747386661954,-400.0,0.00016438,2]
[361240546,1747386661964,-400.0,0.00016438,2]
[361240547,1747386661974,-400.0,0.00016438,2]
[361240548,1747386661984,-400.0,0.00016438,2]
[361240549,1747386661993,-400.0,0.00016438,2]
[361240550,1747386662003,-400.0,0.00016438,2]
[361240551,1747386662012,-400.0,0.00016438,2]
[361240552,1747386662022,-406.4482408,0.00016438,2]
[361240553,1747386662031,-400.0,0.00016438,2]
[361240554,1747386662042,-400.0,0.00016438,2]
[361240555,1747386662053,-400.0,0.00016438,2]
[361240556,1747386662063,-521.18648526,0.00016438,2]
[361240557,1747386662073,-400.0,0.00016438,2]
[361240558,1747386662082,-400.0,0.00016438,2]
[361240559,1747386662092,-400.0,0.00016438,2]
[361240560,1747386662102,-400.0,0.00016438,2]
[361240561,1747386662111,-517.63878183,0.00016438,2]
[361240562,1747386662121,-400.0,0.00016438,2]
[361240563,1747386662131,-400.0,0.00016438,2]
[361240564,1747386662141,-374.74884311,0.00016438,2]
[361240565,1747386662150,-400.0,0.00016438,2]
[361240566,1747386662160,-400.0,0.00016438,2]
[361240567,1747386662170,-400.0,0.00016438,2]
[361240568,1747386662179,-400.0,0.00016438,2]
[361240569,1747386662189,-545.35324433,0.00016438,2]
[361240570,1747386662199,-400.0,0.00016438,2]
[361240571,1747386662209,-400.0,0.00016438,2]
[361240572,1747386662218,-400.0,0.00016438,2]
[361240573,1747386662227,-400.0,0.00016438,2]
[361240574,1747386662237,-400.0,0.00016438,2]
[361240575,1747386662247,-400.0,0.00016438,2]
[361240576,1747386662256,-400.0,0.00016438,2]
[361240577,1747386662266,-475.57,0.00016438,2]
[361240578,1747386662276,-400.0,0.00016438,2]
[361240579,1747386662286,-400.0,0.00016438,2]
[361240580,1747386662296,-400.0,0.00016438,2]
[361240581,1747386662305,-401.44295851,0.00016438,2]
[361240582,1747386662314,-400.0,0.00016438,2]
[361240583,1747386662325,-400.0,0.00016438,2]
[361240584,1747386662335,-400.0,0.00016438,2]
[361240585,1747386662344,-5000.0,0.00016438,2]
[361240586,1747386662354,-470.59,0.00016438,2]
[361240587,1747386662364,-400.0,0.00016438,2]
[361240588,1747386662374,-400.0,0.00016438,2]
[361240589,1747386662383,-400.0,0.00016438,2]
[361240590,1747386662393,-400.0,0.00016438,2]
[361240591,1747386662403,-738.09,0.00016438,2]
[361240592,1747386662414,-400.0,0.00016438,2]
[361240593,1747386662423,-400.0,0.00016438,2]
[361240594,1747386662434,-400.0,0.00016438,2]
[361240595,1747386662450,-400.0,0.00016438,2]
[361240596,1747386662462,-400.0,0.00016438,2]
[361240597,1747386662472,-400.0,0.00016438,2]
[361240598,1747386662482,-400.0,0.00016438,2]
[361240599,1747386662492,-402.26783186,0.00016438,2]
[361240600,1747386662503,-400.0,0.00016438,2]
[361240601,1747386662514,-400.0,0.00016438,2]
[361240602,1747386662524,-400.0,0.00016438,2]
[361240603,1747386662534,-400.0,0.00016438,2]
[361240604,1747386662543,-519.88,0.00016438,2]
[361240605,1747386662553,-462.63653944,0.00016438,2]
[361240606,1747386662563,-400.0,0.00016438,2]
[361240607,1747386662573,-400.0,0.00016438,2]
[361240608,1747386662583,-510.5,0.00016438,2]
[361240609,1747386662593,-300.9443203,0.00016438,2]
[361240610,1747386662603,-943.82,0.00016438,2]
[361240611,1747386662613,-400.0,0.00016438,2]
[361240612,1747386662624,-400.0,0.00016438,2]
[361240613,1747386662635,-400.0,0.00016438,2]
[361240614,1747386662646,-400.0,0.00016438,2]
[361240615,1747386662656,-400.0,0.00016438,2]
[361240616,1747386662666,-400.0,0.00016438,2]
[361240617,1747386662676,-400.0,0.00016438,2]
[361240618,1747386662686,-400.0,0.00016438,2]